fUSD/lending_fUSD_20240826
["ID","MTS","AMOUNT","RATE_DAILY","PERIOD"]
[335952125,1724639449542,-632.97174544,0.00010998,2]
[335952126,1724639449551,-780.36,0.00010998,2]
[335952127,1724639449561,-780.36,0.00010998,2]
[335952128,1724639449570,-780.36,0.00010998,2]
[335952129,1724639449580,-500.0,0.00010998,2]
[335952130,1724639449590,-500.0,0.00010998,2]
[335952131,1724639449600,-500.0,0.00010998,2]
[335952132,1724639449610,-500.0,0.00010998,2]
[335952133,1724639449619,-500.0,0.00010998,2]
[335952134,1724639449628,-500.0,0.00010998,2]
[335952135,1724639449640,-500.0,0.00010998,2]
[335952136,1724639449649,-500.0,0.00010998,2]
[335952137,1724639449658,-500.0,0.00010998,2]
[335952138,1724639449668,-500.0,0.00010998,2]
[335952139,1724639449677,-500.0,0.00010998,2]
[335952140,1724639449690,-500.0,0.00010998,2]
[335952141,1724639449700,-500.0,0.00010998,2]
[335952142,1724639449709,-500.0,0.00010998,2]
[335952143,1724639449719,-500.0,0.00010998,2]
[335952144,1724639449728,-1297.67,0.00010998,2]
[335952145,1724639449738,-1297.67,0.00010998,2]
[335952146,1724639449748,-1297.67,0.00010998,2]
[335952147,1724639449757,-500.0,0.00010998,2]
[335952148,1724639449767,-500.0,0.00010998,2]
[335952149,1724639449776,-500.0,0.00010998,2]
[335952150,1724639449785,-500.0,0.00010998,2]
[335952151,1724639449795,-454.82891347,0.00010998,2]
[335952152,1724639449804,-500.0,0.00010998,2]
[335952153,1724639449814,-500.0,0.00010998,2]
[335952154,1724639449824,-500.0,0.00010998,2]
[335952155,1724639449833,-518.96562257,0.00010998,2]
[335952156,1724639449842,-1377.39,0.00010998,2]
[335952157,1724639449852,-1377.39,0.00010998,2]
[335952158,1724639449861,-1377.39,0.00010998,2]
[335952159,1724639449870,-500.0,0.00010998,2]
[335952160,1724639449879,-500.0,0.00010998,2]
[335952161,1724639449889,-500.0,0.00010998,2]
[335952162,1724639449898,-500.0,0.00010998,2]
[335952163,1724639449907,-500.0,0.00010998,2]
[335952164,1724639449917,-500.0,0.00010998,2]
[335952165,1724639449928,-500.0,0.00010998,2]
[335952166,1724639449939,-500.49024066,0.00010998,2]
[335952167,1724639449949,-500.0,0.00010998,2]
[335952168,1724639449958,-500.0,0.00010998,2]
[335952169,1724639449967,-500.0,0.00010998,2]
[335952170,1724639449978,-4763.7376795,0.00010998,2]
[335952171,1724639449989,-500.0,0.00010998,2]
[335952172,1724639449999,-500.0,0.00010998,2]
[335952173,1724639450009,-500.0,0.00010998,2]
[335952174,1724639450019,-500.0,0.00010998,2]
[335952175,1724639450029,-500.0,0.00010998,2]
[335952176,1724639450038,-500.0,0.00010998,2]
[335952177,1724639450047,-500.0,0.00010998,2]
[335952178,1724639450057,-500.0,0.00010998,2]
[335952179,1724639450066,-500.0,0.00010998,2]
[335952180,1724639450075,-500.0,0.00010998,2]
[335952181,1724639450084,-756.14,0.00010998,2]
[335952182,1724639450094,-756.14,0.00010998,2]
[335952183,1724639450103,-756.14,0.00010998,2]
[335952184,1724639450113,-500.0,0.00010998,2]
[335952185,1724639450123,-500.0,0.00010998,2]
[335952186,1724639450133,-500.0,0.00010998,2]
[335952187,1724639450142,-906.39,0.00010998,2]
[335952188,1724639450152,-906.39,0.00010998,2]
[335952189,1724639450162,-906.39,0.00010998,2]
[335952190,1724639450171,-906.39,0.00010998,2]
[335952191,1724639450181,-543.21,0.00010998,2]
[335952192,1724639450191,-543.21,0.00010998,2]
[335952193,1724639450200,-543.21,0.00010998,2]
[335952194,1724639450210,-500.0,0.00010998,2]
[335952195,1724639450219,-500.0,0.00010998,2]
[335952196,1724639450229,-500.0,0.00010998,2]
[335952197,1724639450238,-500.0,0.00010998,2]
[335952198,1724639450249,-500.0,0.00010998,2]
[335952199,1724639450260,-500.0,0.00010998,2]
[335952200,1724639450270,-500.0,0.00010998,2]
[335952201,1724639450279,-500.0,0.00010998,2]
[335952202,1724639450289,-500.0,0.00010998,2]
[335952203,1724639450298,-500.0,0.00010998,2]
[335952204,1724639450307,-500.0,0.00010998,2]
[335952205,1724639450316,-500.0,0.00010998,2]
[335952206,1724639450328,-500.0,0.00010998,2]
[335952207,1724639450337,-500.0,0.00010998,2]
[335952208,1724639450346,-500.0,0.00010998,2]
[335952209,1724639450355,-500.0,0.00010998,2]
[335952210,1724639450364,-500.0,0.00010998,2]
[335952211,1724639450373,-500.0,0.00010998,2]
[335952212,1724639450383,-500.0,0.00010998,2]
[335952213,1724639450391,-500.0,0.00010998,2]
[335952214,1724639450401,-625.5,0.00010998,2]
[335952215,1724639450410,-625.5,0.00010998,2]
[335952216,1724639450419,-625.5,0.00010998,2]
[335952217,1724639450429,-500.0,0.00010998,2]
[335952218,1724639450440,-500.0,0.00010998,2]
[335952219,1724639450449,-500.0,0.00010998,2]
[335952220,1724639450458,-500.0,0.00010998,2]
[335952221,1724639450468,-500.0,0.00010998,2]
[335952222,1724639450477,-500.0,0.00010998,2]
[335952223,1724639450488,-500.0,0.00010998,2]
[335952224,1724639450499,-500.0,0.00010998,2]
[335952225,1724639450508,-500.0,0.00010998,2]
[335952226,1724639450518,-500.0,0.00010998,2]
[335952227,1724639450527,-500.0,0.00010998,2]
[335952228,1724639450537,-500.0,0.00010998,2]
[335952229,1724639450546,-500.0,0.00010998,2]
[335952230,1724639450556,-500.0,0.00010998,2]
[335952231,1724639450565,-500.0,0.00010998,2]
[335952232,1724639450575,-500.0,0.00010998,2]
[335952233,1724639450585,-1479.31,0.00010998,2]
[335952234,1724639450594,-1479.31,0.00010998,2]
[335952235,1724639450605,-1479.31,0.00010998,2]
[335952236,1724639450614,-1479.31,0.00010998,2]
[335952237,1724639450623,-500.0,0.00010998,2]
[335952238,1724639450633,-500.0,0.00010998,2]
[335952239,1724639450642,-500.0,0.00010998,2]
[335952240,1724639450651,-500.0,0.00010998,2]
[335952241,1724639450660,-500.0,0.00010998,2]
[335952242,1724639450669,-387.62555352,0.00010998,2]
[335952243,1724639450678,-500.0,0.00010998,2]
[335952244,1724639450689,-500.0,0.00010998,2]
[335952245,1724639450698,-500.0,0.00010998,2]
[335952246,1724639450707,-500.0,0.00010998,2]
[335952247,1724639450716,-500.0,0.00010998,2]
[335952248,1724639450726,-500.0,0.00010998,2]
[335952249,1724639450735,-500.0,0.00010998,2]
[335952250,1724639450744,-500.0,0.00010998,2]
[335952251,1724639450753,-500.0,0.00010998,2]
[335952252,1724639450762,-500.0,0.00010998,2]
[335952253,1724639450772,-3143.89,0.00010998,2]
[335952254,1724639450782,-1377.77200915,0.00010998,2]
[335952255,1724639450802,-1766.11799085,0.00010998,2]
[335952256,1724639450811,-3143.89,0.00010998,2]
[335952257,1724639450820,-500.0,0.00010998,2]
[335952258,1724639450831,-500.0,0.00010998,2]
[335952259,1724639450840,-3143.89,0.00010998,2]
[335952260,1724639450851,-255.20678538,0.00010998,2]
[335952261,1724639450870,-244.79321462,0.00010998,2]
[335952262,1724639450880,-160.85467977,0.00010998,2]
[335952263,1724639450892,-339.14532023,0.00010998,2]
[335952264,1724639450902,-19.44467977,0.00010998,2]
[335952265,1724639450914,-480.55532023,0.00010998,2]
[335952266,1724639450923,-500.0,0.00010998,2]
[335952267,1724639450933,-500.0,0.00010998,2]
[335952268,1724639450942,-313.80782366,0.00010998,2]
[335952269,1724639450953,-896.1847932,0.00010998,2]
[335952270,1724639450969,-500.0,0.00010992,2]
[335952271,1724639450979,-157.09738314,0.00010998,2]
[335952272,1724639450989,-1367.09,0.00010998,2]
[335952273,1724639450998,-1367.09,0.00010998,2]
[335952274,1724639451007,-1367.09,0.00010998,2]
[335952275,1724639451016,-356.6104209,0.00010998,2]
[335952276,1724639451027,-429.1995791,0.00010998,2]
[335952277,1724639451036,-785.81,0.00010998,2]
[335952278,1724639451045,-86.32805171,0.00010998,2]
[335952279,1724639451056,-699.48194829,0.00010998,2]
[335952280,1724639451065,-785.81,0.00010998,2]
[335952281,1724639451074,-500.0,0.00010998,2]
[335952282,1724639451084,-500.0,0.00010998,2]
[335952283,1724639451093,-500.0,0.00010998,2]
[335952284,1724639451102,-1216.31,0.00010998,2]
[335952285,1724639451111,-1216.31,0.00010998,2]
[335952286,1724639451121,-1216.31,0.00010998,2]
[335952287,1724639451130,-1216.31,0.00010998,2]
[335952288,1724639451139,-936.74,0.00010998,2]
[335952289,1724639451148,-500.0,0.00010998,2]
[335952290,1724639451157,-500.0,0.00010998,2]
[335952291,1724639451166,-936.74,0.00010998,2]
[335952292,1724639451175,-500.0,0.00010998,2]
[335952293,1724639451186,-936.74,0.00010998,2]
[335952294,1724639451195,-936.74,0.00010998,2]
[335952295,1724639451207,-500.0,0.00010998,2]
[335952296,1724639451217,-500.0,0.00010998,2]
[335952297,1724639451226,-500.0,0.00010998,2]
[335952298,1724639451235,-970.97,0.00010998,2]
[335952299,1724639451246,-970.97,0.00010998,2]
[335952300,1724639451259,-677.97714818,0.00010998,2]
[335952301,1724639530114,300.0,9.884e-05,2]
[335952302,1724639539928,244.54,9.884e-05,2]
[335952304,1724639584045,7587.23359003,9.884e-05,2]
[335952305,1724639585358,250.0,9.884e-05,2]
[335952307,1724639590463,23900.0,9.884e-05,2]
[335952310,1724639664985,7584.75619285,9.884e-05,2]
[335952315,1724639767948,621.66,8.219e-05,2]
[335952321,1724639854002,7585.99489144,8.219e-05,2]
[335952322,1724639857934,11918.55417711,9.962e-05,2]
[335952323,1724639871007,7587.23359003,8.219e-05,2]
[335952327,1724639907514,7584.75619285,9.962e-05,2]
[335952328,1724639956530,402.35,9.878e-05,2]
[335952329,1724639991463,400.0,9.877e-05,2]
[335952354,1724640177149,1000.0,9.867e-05,2]
[335952357,1724640190889,5107.57,9.868e-05,2]
[335952359,1724640308537,1445.33532012,9.868e-05,2]
[335952360,1724640359885,623.57,8.219e-05,2]
[335952362,1724640370721,1050.0,0.0001,2]
[335952363,1724640392476,250.0,9.864e-05,2]
[335952365,1724640403139,656.66,0.0001,2]
[335952367,1724640461666,445.43,9.864e-05,2]
[335952370,1724640570746,200.0,9.753e-05,2]
[335952374,1724640632384,-155.27057633,0.00010097,2]
[335952375,1724640632394,-178.4,0.00010415,2]
[335952377,1724640632403,-174.04281245,0.00010465,2]
[335952378,1724640632413,-623.57,0.00010469,2]
[335952379,1724640632423,-155.22081511,0.00010471,2]
[335952380,1724640632433,-197.71807451,0.00010471,2]
[335952381,1724640632442,-300.0,0.00010594,2]
[335952382,1724640632452,-300.0,0.00010594,2]
[335952383,1724640632462,-752.10629859,0.00010595,2]
[335952384,1724640632474,-2273.50420141,0.00010595,2]
[335952385,1724640632484,-196.73877356,0.00010595,2]
[335952386,1724640632496,-490.88962416,0.00010595,2]
[335952387,1724640632509,-615.52420228,0.00010595,2]
[335952388,1724640632518,-3653.44596442,0.00010595,2]
[335952389,1724640632573,-777.495996,0.00010595,2]
[335952390,1724640632591,-493.74027069,0.00010595,2]
[335952391,1724640632603,-615.77052,0.00010595,2]
[335952392,1724640632615,-496.77,0.00010595,2]
[335952393,1724640632627,-1462.77724889,0.00010595,2]
[335952394,1724640632637,-150.0,0.00010658,2]
[335952395,1724640632647,-150.0,0.00010693,2]
[335952396,1724640632656,-547.90480185,0.00010694,2]
[335952397,1724640632669,-500.0,0.00010694,2]
[335952398,1724640632679,-533.55885351,0.00010694,2]
[335952399,1724640632688,-554.42887494,0.00010694,2]
[335952400,1724640632697,-188.86394186,0.00010694,2]
[335952401,1724640632710,-311.13605814,0.00010694,2]
[335952402,1724640632719,-554.16,0.00010694,2]
[335952403,1724640632729,-520.27,0.00010694,2]
[335952404,1724640632738,-302.63562934,0.00010694,2]
[335952405,1724640632747,-500.0,0.00010694,2]
[335952406,1724640632758,-645.85,0.00010694,2]
[335952407,1724640632767,-500.0,0.00010694,2]
[335952408,1724640632775,-500.0,0.00010694,2]
[335952409,1724640632785,-500.0,0.00010694,2]
[335952410,1724640632794,-617.79,0.00010694,2]
[335952411,1724640632803,-137.31418038,0.00010694,2]
[335952412,1724640632820,-287.37338502,0.00010694,2]
[335952413,1724640632839,-75.3124346,0.00010694,2]
[335952414,1724640632849,-354.90588286,0.00010694,2]
[335952415,1724640632858,-91.22499472,0.00010694,2]
[335952416,1724640632871,-408.77500528,0.00010694,2]
[335952417,1724640632880,-500.0,0.00010694,2]
[335952418,1724640632890,-500.0,0.00010694,2]
[335952419,1724640632899,-119.57602717,0.00010694,2]
[335952420,1724640632911,-380.42397283,0.00010694,2]
[335952421,1724640632920,-33.04925625,0.00010694,2]
[335952422,1724640632932,-1551.83074375,0.00010694,2]
[335952423,1724640632942,-500.0,0.00010694,2]
[335952424,1724640632951,-467.27805202,0.00010694,2]
[335952425,1724640632966,-748.16194798,0.00010694,2]
[335952426,1724640632975,-500.0,0.00010694,2]
[335952427,1724640632984,-500.0,0.00010694,2]
[335952428,1724640632993,-500.0,0.00010694,2]
[335952429,1724640633003,-500.0,0.00010694,2]
[335952430,1724640633012,-500.0,0.00010694,2]
[335952431,1724640633022,-500.0,0.00010694,2]
[335952432,1724640633031,-500.0,0.00010694,2]
[335952433,1724640633041,-4016.08,0.00010694,2]
[335952434,1724640633051,-500.0,0.00010694,2]
[335952435,1724640633064,-539.75774824,0.00010694,2]
[335952436,1724640633080,-528.8274557,0.00010694,2]
[335952437,1724640633091,-56.14075449,0.00010694,2]
[335952438,1724640633103,-300.0,0.00010694,2]
[335952445,1724640638532,-194.41704149,0.00010694,2]
[335952446,1724640638542,-585.79812922,0.00010694,2]
[335952447,1724640638552,-529.52260899,0.00010694,2]
[335952448,1724640638562,-543.03215919,0.00010694,2]
[335952449,1724640638574,-539.9633287,0.00010694,2]
[335952450,1724640638584,-500.0,0.00010694,2]
[335952451,1724640638597,-547.97857948,0.00010694,2]
[335952452,1724640638606,-385.88363659,0.00010694,2]
[335952453,1724640638616,-500.0,0.00010694,2]
[335952454,1724640638626,-500.0,0.00010694,2]
[335952455,1724640638636,-26.00571634,0.00010694,2]
[335952456,1724640638647,-473.99428366,0.00010694,2]
[335952457,1724640638657,-488.27389863,0.00010694,2]
[335952458,1724640638667,-500.0,0.00010694,2]
[335952459,1724640638676,-642.03,0.00010694,2]
[335952460,1724640638686,-500.0,0.00010694,2]
[335952461,1724640638696,-567.1,0.00010694,2]
[335952462,1724640638705,-500.0,0.00010694,2]
[335952463,1724640638714,-500.0,0.00010694,2]
[335952464,1724640638723,-500.0,0.00010694,2]
[335952465,1724640638732,-500.0,0.00010694,2]
[335952466,1724640638741,-500.0,0.00010694,2]
[335952467,1724640638751,-500.0,0.00010694,2]
[335952468,1724640638760,-500.0,0.00010694,2]
[335952469,1724640638771,-238.47,0.00010694,2]
[335952470,1724640638782,-500.0,0.00010694,2]
[335952471,1724640638791,-500.0,0.00010694,2]
[335952472,1724640638800,-500.0,0.00010694,2]
[335952473,1724640638809,-1047.84,0.00010694,2]
[335952474,1724640638822,-500.0,0.00010694,2]
[335952475,1724640638831,-578.25866229,0.00010694,2]
[335952476,1724640638843,-390.09133771,0.00010694,2]
[335952477,1724640638852,-500.0,0.00010694,2]
[335952478,1724640638861,-500.0,0.00010694,2]
[335952479,1724640638870,-861.55,0.00010694,2]
[335952480,1724640638880,-500.0,0.00010694,2]
[335952481,1724640638889,-2226.92,0.00010694,2]
[335952482,1724640638897,-500.0,0.00010694,2]
[335952483,1724640638907,-977.73,0.00010694,2]
[335952484,1724640638916,-740.44,0.00010694,2]
[335952485,1724640638925,-713.79,0.00010694,2]
[335952486,1724640638935,-500.0,0.00010694,2]
[335952488,1724640638944,-663.53,0.00010694,2]
[335952490,1724640638954,-1900.52,0.00010694,2]
[335952491,1724640638963,-500.0,0.00010694,2]
[335952493,1724640638972,-500.0,0.00010694,2]
[335952495,1724640638981,-500.0,0.00010694,2]
[335952497,1724640638990,-500.0,0.00010694,2]
[335952499,1724640638999,-266.82220286,0.00010694,2]
[335952501,1724640639009,-1635.79,0.00010694,2]
[335952503,1724640639018,-500.0,0.00010694,2]
[335952505,1724640639027,-734.93,0.00010694,2]
[335952507,1724640639036,-500.0,0.00010694,2]
[335952509,1724640639045,-500.0,0.00010694,2]
[335952511,1724640639054,-500.0,0.00010694,2]
[335952512,1724640639065,-500.0,0.00010694,2]
[335952514,1724640639075,-1828.88,0.00010694,2]
[335952516,1724640639084,-1943.94,0.00010694,2]
[335952518,1724640639093,-3453.09,0.00010694,2]
[335952520,1724640639102,-503.37056044,0.00010694,2]
[335952522,1724640639111,-500.0,0.00010694,2]
[335952524,1724640639120,-505.90067953,0.00010694,2]
[335952526,1724640639129,-714.6,0.00010694,2]
[335952528,1724640639138,-500.0,0.00010694,2]
[335952530,1724640639147,-572.30629322,0.00010694,2]
[335952532,1724640639156,-500.0,0.00010694,2]
[335952534,1724640639164,-524.02,0.00010694,2]
[335952536,1724640639174,-4923.59,0.00010694,2]
[335952537,1724640639183,-500.0,0.00010694,2]
[335952539,1724640639191,-500.0,0.00010694,2]
[335952541,1724640639200,-500.0,0.00010694,2]
[335952543,1724640639209,-500.0,0.00010694,2]
[335952545,1724640639218,-500.0,0.00010695,2]
[335952547,1724640639227,-3515.00141314,0.00010695,2]
[335952549,1724640639239,-709.08266212,0.00010695,2]
[335952552,1724640639250,-7310.16588606,0.00010695,2]
[335952554,1724640639260,-307.07755376,0.00010695,2]
[335952556,1724640639271,-1043.64469996,0.00010695,2]
[335952558,1724640639281,-19137.89899619,0.00010695,2]
[335952560,1724640639292,-2234.28306925,0.00010695,2]
[335952562,1724640639303,-515.28705452,0.00010695,2]
[335952565,1724640639330,-500.0,0.00010694,2]
[335952567,1724640639340,-634.70787623,0.00010695,2]
[335952569,1724640639351,-764.63375787,0.00010695,2]
[335952572,1724640639363,-6445.4642066,0.00010695,2]
[335952574,1724640639375,-6299.53205475,0.00010695,2]
[335952576,1724640639386,-1248.82727493,0.00010695,2]
[335952578,1724640639397,-5213.2416444,0.00010695,2]
[335952580,1724640639408,-10057.58,0.00010695,2]
[335952583,1724640639419,-3861.57904239,0.00010695,2]
[335952585,1724640639431,-775.32103016,0.00010695,2]
[335952587,1724640639442,-442.25,0.00010695,2]
[335952589,1724640639454,-29151.56577767,0.00010695,2]
[335952591,1724640639463,-10531.44108131,0.00010695,2]
[335952593,1724640639473,-4830.05462,0.00010695,2]
[335952597,1724640639497,-1167.56978197,0.00010695,2]
[335952688,1724640640409,-5520.4318433,0.00010695,2]
[335952690,1724640640421,-24104.6103854,0.00010695,2]
[335952706,1724640640577,-2097.4628608,0.00010695,2]
[335952709,1724640640593,-3272.27004882,0.00010695,2]
[335952711,1724640640604,-540.18000005,0.00010695,2]
[335952713,1724640640616,-1079.800005,0.00010695,2]
[335952715,1724640640628,-17049.04648691,0.00010695,2]
[335952717,1724640640639,-34651.65088187,0.00010695,2]
[335952718,1724640640651,-3593.08737091,0.00010695,2]
[335952719,1724640640662,-322.85018007,0.00010695,2]
[335952720,1724640640737,-1809.41,0.00010695,2]
[335952721,1724640640748,-2352.05509603,0.00010695,2]
[335952722,1724640640760,-6158.44007721,0.00010695,2]
[335952723,1724640640771,-307.46014093,0.00010695,2]
[335952724,1724640640782,-318.78489402,0.00010695,2]
[335952739,1724640641062,-503.4787228,0.00010695,2]
[335952742,1724640641075,-707.29759084,0.00010695,2]
[335952744,1724640641086,-347.78074878,0.00010695,2]
[335953007,1724640643585,-531.07,0.00010694,2]
[335953009,1724640643600,-500.0,0.00010694,2]
[335953011,1724640643610,-54627.86128298,0.00010695,2]
[335953013,1724640643620,-565.6225,0.00010695,2]
[335953015,1724640643629,-5573.1277,0.00010695,2]
[335953017,1724640643640,-2364.87,0.00010695,2]
[335953019,1724640643650,-150.99,0.00010699,2]
[335953021,1724640643659,-1370.78202873,0.00010713,2]
[335953023,1724640643670,-150.0,0.00010725,2]
[335953025,1724640643680,-150.0,0.00010732,2]
[335953027,1724640643690,-164.59958397,0.00010733,2]
[335953029,1724640643699,-150.0,0.00010738,2]
[335953031,1724640643709,-150.0,0.00010741,2]
[335953033,1724640643719,-150.0,0.00010746,2]
[335953035,1724640643729,-499.99,0.00010749,2]
[335953037,1724640643739,-802.05,0.00010749,2]
[335953039,1724640643748,-150.0,0.00010753,2]
[335953041,1724640643758,-150.0,0.00010755,2]
[335953044,1724640643770,-150.0,0.00010758,2]
[335953046,1724640643779,-1500.0,0.00010761,2]
[335953048,1724640643790,-150.0,0.00010764,2]
[335953050,1724640643799,-150.0,0.0001077,2]
[335953052,1724640643808,-150.0,0.00010772,2]
[335953054,1724640643819,-150.0,0.00010773,2]
[335953056,1724640643828,-150.0,0.00010775,2]
[335953058,1724640643838,-150.0,0.00010777,2]
[335953060,1724640643848,-150.0,0.00010778,2]
[335953062,1724640643857,-150.0,0.0001078,2]
[335953064,1724640643866,-150.0,0.00010781,2]
[335953066,1724640643876,-150.0,0.00010786,2]
[335953068,1724640643886,-150.0,0.00010789,2]
[335953070,1724640643895,-150.0,0.0001079,2]
[335953072,1724640643905,-150.0,0.00010791,2]
[335953074,1724640643915,-297.43100973,0.00010794,2]
[335953076,1724640643924,-500.0,0.00010794,2]
[335953078,1724640643934,-251.53896895,0.00010794,2]
[335953080,1724640643944,-500.0,0.00010794,2]
[335953082,1724640643954,-500.0,0.00010794,2]
[335953084,1724640643963,-500.0,0.00010794,2]
[335953086,1724640643972,-500.0,0.00010794,2]
[335953088,1724640643983,-166.29863265,0.00010794,2]
[335953090,1724640643993,-500.0,0.00010794,2]
[335953092,1724640644002,-500.0,0.00010794,2]
[335953095,1724640644011,-500.0,0.00010794,2]
[335953098,1724640644020,-500.0,0.00010794,2]
[335953101,1724640644030,-500.0,0.00010794,2]
[335953103,1724640644039,-500.0,0.00010794,2]
[335953105,1724640644048,-500.0,0.00010794,2]
[335953107,1724640644057,-500.0,0.00010794,2]
[335953109,1724640644067,-500.0,0.00010794,2]
[335953111,1724640644076,-500.0,0.00010794,2]
[335953113,1724640644086,-525.68715635,0.00010794,2]
[335953115,1724640644095,-543.15124918,0.00010794,2]
[335953117,1724640644104,-500.0,0.00010794,2]
[335953119,1724640644114,-526.85069267,0.00010794,2]
[335953120,1724640644123,-500.0,0.00010794,2]
[335953122,1724640644132,-549.29374048,0.00010794,2]
[335953124,1724640644142,-534.06749258,0.00010794,2]
[335953126,1724640644151,-522.84696848,0.00010794,2]
[335953128,1724640644160,-500.0,0.00010794,2]
[335953130,1724640644169,-302.01809124,0.00010794,2]
[335953132,1724640644179,-506.38308315,0.00010794,2]
[335953134,1724640644188,-183.23042094,0.00010794,2]
[335953136,1724640644198,-500.0,0.00010794,2]
[335953138,1724640644207,-500.0,0.00010794,2]
[335953140,1724640644217,-500.0,0.00010794,2]
[335953142,1724640644226,-569.29512922,0.00010794,2]
[335953143,1724640644235,-578.28459059,0.00010794,2]
[335953145,1724640644244,-500.0,0.00010794,2]
[335953147,1724640644254,-864.76,0.00010794,2]
[335953149,1724640644263,-500.0,0.00010794,2]
[335953151,1724640644271,-522.12758702,0.00010794,2]
[335953153,1724640644281,-548.93222618,0.00010794,2]
[335953155,1724640644291,-507.46014127,0.00010794,2]
[335953157,1724640644301,-500.0,0.00010794,2]
[335953159,1724640644310,-562.38339276,0.00010794,2]
[335953161,1724640644321,-150.0,0.00010797,2]
[335953163,1724640644331,-2146.94259288,0.00010799,2]
[335953165,1724640644341,-2146.94259288,0.00010799,2]
[335953167,1724640644350,-156.50295552,0.000108,2]
[335953169,1724640644359,-150.0,0.00010803,2]
[335953171,1724640644368,-150.0,0.00010804,2]
[335953173,1724640644378,-150.0,0.00010805,2]
[335953175,1724640644388,-150.0,0.00010811,2]
[335953177,1724640644398,-150.0,0.00010813,2]
[335953179,1724640644407,-150.0,0.00010817,2]
[335953181,1724640644417,-273.254581,0.00010819,2]
[335953183,1724640644425,-150.0,0.00010819,2]
[335953185,1724640644435,-150.0,0.00010819,2]
[335953187,1724640644445,-150.0,0.00010821,2]
[335953189,1724640644454,-150.51483899,0.00010828,2]
[335953191,1724640644463,-150.0,0.00010828,2]
[335953192,1724640644472,-150.0,0.00010837,2]
[335953194,1724640644482,-150.0,0.00010844,2]
[335953196,1724640644491,-150.0,0.00010846,2]
[335953199,1724640644501,-150.0,0.00010846,2]
[335953201,1724640644511,-629.66925301,0.00010863,2]
[335953203,1724640644520,-300.0,0.00010863,2]
[335953204,1724640644529,-150.0,0.00010864,2]
[335953206,1724640644538,-150.0,0.00010864,2]
[335953208,1724640644548,-150.0,0.00010865,2]
[335953210,1724640644557,-154.38467006,0.00010872,2]
[335953212,1724640644566,-150.0,0.00010872,2]
[335953214,1724640644575,-150.0,0.00010875,2]
[335953215,1724640644585,-150.0,0.00010879,2]
[335953217,1724640644597,-150.0,0.00010887,2]
[335953219,1724640644606,-155.66195732,0.00010888,2]
[335953221,1724640644615,-1188.62084,0.0001089,2]
[335953223,1724640644624,-150.0,0.00010893,2]
[335953225,1724640644635,-150.0,0.00010894,2]
[335953227,1724640644644,-1500.0,0.00010898,2]
[335953229,1724640644653,-11503.0,0.000109,5]
[335953231,1724640644663,-150.0,0.000109,2]
[335953232,1724640644672,-791.05,0.000109,2]
[335953234,1724640644682,-300.0,0.000109,2]
[335953236,1724640644691,-421.59,0.000109,2]
[335953238,1724640644701,-355.26,0.000109,2]
[335953240,1724640644710,-421.59,0.000109,2]
[335953242,1724640644719,-791.05,0.000109,2]
[335953244,1724640644729,-421.59,0.000109,2]
[335953246,1724640644738,-793.96,0.000109,2]
[335953248,1724640644747,-421.59,0.000109,2]
[335953250,1724640644756,-196.89,0.000109,2]
[335953252,1724640644767,-152.59,0.000109,2]